[Event "*** Titled Tuesday Blitz"]
[Site "Chess.com"]
[Date "2020.10.20"]
[Round "11"]
[White "Mazetovic"]
[Black "tlomigtlis"]
[Result "1-0"]
[WhiteElo "2739"]
[BlackElo "2568"]
[TimeControl "180+1"]
[EndTime "12:08:53 PDT"]
[Termination "Mazetovic won by checkmate"]

1. e4 {[%clk 0:03:00.9]} 1... c5 {[%clk 0:02:59.8]} 2. Nf3 {[%clk 0:03:01.4]}
2... d6 {[%clk 0:03:00.2]} 3. d4 {[%clk 0:02:56]} 3... cxd4 {[%clk 0:03:01.1]}
4. Nxd4 {[%clk 0:02:56.6]} 4... Nf6 {[%clk 0:03:01.1]} 5. Nc3 {[%clk 0:02:57.5]}
5... a6 {[%clk 0:03:01.2]} 6. h3 {[%clk 0:02:56]} 6... e5 {[%clk 0:03:01.2]} 7.
Nde2 {[%clk 0:02:53.4]} 7... h5 {[%clk 0:03:01.5]} 8. Bg5 {[%clk 0:02:49.2]}
8... Be7 {[%clk 0:02:59.2]} 9. Qd2 {[%clk 0:02:39.9]} 9... Be6 {[%clk
0:02:56.5]} 10. Ng3 {[%clk 0:02:33.3]} 10... Nbd7 {[%clk 0:02:54.4]} 11. Nf5
{[%clk 0:02:31.9]} 11... Bxf5 {[%clk 0:02:17.7]} 12. exf5 {[%clk 0:02:32.8]}
12... d5 {[%clk 0:02:14]} 13. O-O-O {[%clk 0:01:42.8]} 13... d4 {[%clk
0:02:13.8]} 14. Ne2 {[%clk 0:01:42.2]} 14... Nc5 {[%clk 0:02:03.1]} 15. Bxf6
{[%clk 0:01:39]} 15... Bxf6 {[%clk 0:02:01.9]} 16. Kb1 {[%clk 0:01:39.9]} 16...
Ne4 {[%clk 0:02:00.3]} 17. Qe1 {[%clk 0:01:38.4]} 17... Nd6 {[%clk 0:01:28.9]}
18. Nxd4 {[%clk 0:01:31.6]} 18... O-O {[%clk 0:01:28.3]} 19. Nf3 {[%clk
0:01:28.5]} 19... Qb6 {[%clk 0:01:28.2]} 20. c3 {[%clk 0:01:13.1]} 20... Nxf5
{[%clk 0:01:21.7]} 21. g4 {[%clk 0:01:09]} 21... e4 {[%clk 0:00:56.7]} 22. Qxe4
{[%clk 0:01:01.7]} 22... Nd6 {[%clk 0:00:56.7]} 23. Qc2 {[%clk 0:00:51.9]} 23...
Nb5 {[%clk 0:00:50.9]} 24. Bxb5 {[%clk 0:00:48.9]} 24... axb5 {[%clk 0:00:49.8]}
25. g5 {[%clk 0:00:48.5]} 25... Be7 {[%clk 0:00:48.5]} 26. Nd4 {[%clk
0:00:39.8]} 26... b4 {[%clk 0:00:46.7]} 27. cxb4 {[%clk 0:00:38.8]} 27... Bxb4
{[%clk 0:00:43.9]} 28. Nf5 {[%clk 0:00:20.9]} 28... Rfc8 {[%clk 0:00:39.6]} 29.
Qb3 {[%clk 0:00:20.2]} 29... Qxf2 {[%clk 0:00:25.2]} 30. Rhf1 {[%clk 0:00:19.8]}
30... Qa7 {[%clk 0:00:24.7]} 31. g6 {[%clk 0:00:19.3]} 31... Bf8 {[%clk
0:00:19.9]} 32. Qxf7+ {[%clk 0:00:17.5]} 32... Kh8 {[%clk 0:00:20.3]} 33. Nh6
{[%clk 0:00:17.6]} 33... Qxa2+ {[%clk 0:00:15.8]} 34. Qxa2 {[%clk 0:00:16.8]}
34... Rxa2 {[%clk 0:00:16.7]} 35. Nf7+ {[%clk 0:00:16.2]} 35... Kg8 {[%clk
0:00:16.5]} 36. Kxa2 {[%clk 0:00:16.4]} 36... Ra8+ {[%clk 0:00:17.4]} 37. Kb3
{[%clk 0:00:16.5]} 37... Rc8 {[%clk 0:00:18.3]} 38. Rd8 {[%clk 0:00:16.5]} 38...
Rc6 {[%clk 0:00:17.5]} 39. Rxf8+ {[%clk 0:00:15.2]} 39... Kxf8 {[%clk
0:00:17.2]} 40. Ne5+ {[%clk 0:00:16.1]} 40... Rf6 {[%clk 0:00:17.2]} 41. Nd7+
{[%clk 0:00:16.8]} 41... Ke7 {[%clk 0:00:17.7]} 42. Nxf6 {[%clk 0:00:17.7]}
42... gxf6 {[%clk 0:00:18.4]} 43. Rf5 {[%clk 0:00:17.6]} 43... Ke6 {[%clk
0:00:18.3]} 44. Rxh5 {[%clk 0:00:18.5]} 44... f5 {[%clk 0:00:18.3]} 45. Rxf5
{[%clk 0:00:18.5]} 45... Kxf5 {[%clk 0:00:18.5]} 46. g7 {[%clk 0:00:19.4]} 46...
Ke4 {[%clk 0:00:19.1]} 47. g8=Q {[%clk 0:00:20.3]} 47... b5 {[%clk 0:00:19.7]}
48. Qg4+ {[%clk 0:00:19.8]} 48... Ke5 {[%clk 0:00:19.6]} 49. h4 {[%clk
0:00:20.2]} 49... b4 {[%clk 0:00:20.5]} 50. h5 {[%clk 0:00:20.8]} 50... Kf6
{[%clk 0:00:20.4]} 51. h6 {[%clk 0:00:21.3]} 51... Ke7 {[%clk 0:00:21.3]} 52. h7
{[%clk 0:00:21.6]} 52... Kd6 {[%clk 0:00:22.2]} 53. h8=Q {[%clk 0:00:21.2]}
53... Kc5 {[%clk 0:00:22.8]} 54. Qe5+ {[%clk 0:00:21]} 54... Kb6 {[%clk
0:00:23.7]} 55. Qge6+ {[%clk 0:00:17.1]} 55... Ka7 {[%clk 0:00:23.8]} 56. Qc7+
{[%clk 0:00:13.1]} 56... Ka8 {[%clk 0:00:24.7]} 57. Kc4 {[%clk 0:00:11.5]} 57...
b3 {[%clk 0:00:24.4]} 58. Qa6# {[%clk 0:00:10.5]} 1-0

[Event "*** Titled Tuesday Blitz"]
[Site "Chess.com"]
[Date "2020.10.20"]
[Round "11"]
[White "tdf98pantani"]
[Black "Orest_Vovk"]
[Result "1-0"]
[WhiteElo "2726"]
[BlackElo "2517"]
[TimeControl "180+1"]
[EndTime "12:08:58 PDT"]
[Termination "tdf98pantani won by resignation"]

1. d4 {[%clk 0:03:00.9]} 1... Nc6 {[%clk 0:02:58.5]} 2. Nf3 {[%clk 0:02:59.9]}
2... d6 {[%clk 0:02:58.4]} 3. e4 {[%clk 0:02:58.8]} 3... Bg4 {[%clk 0:02:57.1]}
4. Be3 {[%clk 0:02:58.3]} 4... e6 {[%clk 0:02:55.5]} 5. Nc3 {[%clk 0:02:56.8]}
5... Be7 {[%clk 0:02:55.3]} 6. h3 {[%clk 0:02:56.7]} 6... Bxf3 {[%clk
0:02:54.8]} 7. Qxf3 {[%clk 0:02:56.4]} 7... Bg5 {[%clk 0:02:54.9]} 8. Bb5 {[%clk
0:02:53.7]} 8... Bxe3 {[%clk 0:02:53.5]} 9. fxe3 {[%clk 0:02:53.6]} 9... Ne7
{[%clk 0:02:15.4]} 10. O-O {[%clk 0:02:52.4]} 10... O-O {[%clk 0:02:14.7]} 11.
Qg3 {[%clk 0:02:48.3]} 11... Ng6 {[%clk 0:02:12.6]} 12. Rf2 {[%clk 0:02:31.6]}
12... Qh4 {[%clk 0:02:07.5]} 13. Qf3 {[%clk 0:02:31.3]} 13... f5 {[%clk
0:01:51]} 14. Bxc6 {[%clk 0:02:23.5]} 14... fxe4 {[%clk 0:01:42]} 15. Qe2 {[%clk
0:02:11.6]} 15... Qxf2+ {[%clk 0:01:38.1]} 16. Qxf2 {[%clk 0:02:11.5]} 16...
Rxf2 {[%clk 0:01:38.1]} 17. Kxf2 {[%clk 0:02:12.1]} 17... bxc6 {[%clk
0:01:37.7]} 18. Nxe4 {[%clk 0:02:12.6]} 18... e5 {[%clk 0:01:32.2]} 19. Re1
{[%clk 0:01:48.1]} 19... Re8 {[%clk 0:01:18.2]} 20. c4 {[%clk 0:01:43.8]} 20...
Rb8 {[%clk 0:01:15.8]} 21. b3 {[%clk 0:01:43.3]} 21... a5 {[%clk 0:01:13.6]} 22.
Nc3 {[%clk 0:01:42.3]} 22... Kf7 {[%clk 0:01:10.3]} 23. Rd1 {[%clk 0:01:29.7]}
23... Ke6 {[%clk 0:01:09.5]} 24. d5+ {[%clk 0:01:29.7]} 24... cxd5 {[%clk
0:01:08.7]} 25. Rxd5 {[%clk 0:01:29.8]} 25... Ra8 {[%clk 0:00:59.3]} 26. g3
{[%clk 0:01:09.2]} 26... Ne7 {[%clk 0:00:54.7]} 27. Rd1 {[%clk 0:01:06.4]} 27...
Rf8+ {[%clk 0:00:52.2]} 28. Ke2 {[%clk 0:01:05.7]} 28... Nf5 {[%clk 0:00:52]}
29. Rg1 {[%clk 0:01:04.7]} 29... c6 {[%clk 0:00:49.8]} 30. g4 {[%clk 0:00:59.6]}
30... Nh4 {[%clk 0:00:49.5]} 31. Ne4 {[%clk 0:00:55.6]} 31... h6 {[%clk
0:00:44.2]} 32. g5 {[%clk 0:00:52.9]} 32... d5 {[%clk 0:00:40.7]} 33. Nc5+
{[%clk 0:00:50.9]} 33... Kd6 {[%clk 0:00:40]} 34. Nb7+ {[%clk 0:00:51]} 34...
Kc7 {[%clk 0:00:38.3]} 35. Nxa5 {[%clk 0:00:50.7]} 35... Ra8 {[%clk 0:00:27.9]}
36. b4 {[%clk 0:00:48.7]} 36... dxc4 {[%clk 0:00:27.1]} 37. gxh6 {[%clk
0:00:47.8]} 37... gxh6 {[%clk 0:00:26.3]} 38. Rg7+ {[%clk 0:00:47.8]} 38... Kd6
{[%clk 0:00:26.4]} 39. Nxc4+ {[%clk 0:00:47.5]} 39... Ke6 {[%clk 0:00:25.4]} 40.
a3 {[%clk 0:00:41.6]} 40... Ra6 {[%clk 0:00:21]} 41. e4 {[%clk 0:00:37.1]} 41...
c5 {[%clk 0:00:16.5]} 42. b5 {[%clk 0:00:36]} 42... Ra4 {[%clk 0:00:16.1]} 43.
Kd3 {[%clk 0:00:34.1]} 43... Nf3 {[%clk 0:00:15.6]} 44. b6 {[%clk 0:00:24.1]}
44... Ra8 {[%clk 0:00:15.5]} 45. b7 {[%clk 0:00:23.5]} 45... Rb8 {[%clk
0:00:15.7]} 46. a4 {[%clk 0:00:22.4]} 46... Nd4 {[%clk 0:00:13.8]} 47. a5 {[%clk
0:00:22.3]} 47... Nb5 {[%clk 0:00:12.4]} 48. Rg6+ {[%clk 0:00:20.2]} 48... Kf7
{[%clk 0:00:11.9]} 49. Rb6 {[%clk 0:00:20.7]} 49... Rd8+ {[%clk 0:00:11.9]} 50.
Ke3 {[%clk 0:00:20.4]} 50... Na3 {[%clk 0:00:10.4]} 51. Nxa3 {[%clk 0:00:19.7]}
1-0

[Event "*** Titled Tuesday Blitz"]
[Site "Chess.com"]
[Date "2020.10.20"]
[Round "11"]
[White "AniJak"]
[Black "Vandros57"]
[Result "1/2-1/2"]
[WhiteElo "2359"]
[BlackElo "2193"]
[TimeControl "180+1"]
[EndTime "12:08:58 PDT"]
[Termination "Game drawn by repetition"]

1. e4 {[%clk 0:03:00.9]} 1... c5 {[%clk 0:02:58.6]} 2. Nc3 {[%clk 0:02:59.7]}
2... Nc6 {[%clk 0:02:56.8]} 3. g3 {[%clk 0:02:59.9]} 3... g6 {[%clk 0:02:55.1]}
4. Bg2 {[%clk 0:03:00]} 4... Bg7 {[%clk 0:02:55]} 5. d3 {[%clk 0:03:00.5]} 5...
e6 {[%clk 0:02:54.9]} 6. Be3 {[%clk 0:03:00]} 6... b6 {[%clk 0:02:53.1]} 7. Qd2
{[%clk 0:02:59.8]} 7... Nge7 {[%clk 0:02:51]} 8. h4 {[%clk 0:02:52.3]} 8... h5
{[%clk 0:02:45.8]} 9. f4 {[%clk 0:02:52.3]} 9... d5 {[%clk 0:02:39.2]} 10. exd5
{[%clk 0:02:44.4]} 10... Nxd5 {[%clk 0:02:35.3]} 11. Nxd5 {[%clk 0:02:43.7]}
11... exd5 {[%clk 0:02:34.1]} 12. O-O-O {[%clk 0:02:28.5]} 12... O-O {[%clk
0:02:26.7]} 13. Ne2 {[%clk 0:02:25.7]} 13... Bg4 {[%clk 0:02:19.5]} 14. Rde1
{[%clk 0:02:19.6]} 14... Bxe2 {[%clk 0:02:08.6]} 15. Rxe2 {[%clk 0:02:18.1]}
15... Re8 {[%clk 0:02:07.8]} 16. Rhe1 {[%clk 0:02:12.6]} 16... Qd7 {[%clk
0:02:05.9]} 17. Bf2 {[%clk 0:02:10.9]} 17... Rxe2 {[%clk 0:02:02.4]} 18. Qxe2
{[%clk 0:02:09.1]} 18... Kf8 {[%clk 0:01:50.8]} 19. Bf3 {[%clk 0:02:00.7]} 19...
Nd4 {[%clk 0:01:47.3]} 20. Bxd4 {[%clk 0:02:00.7]} 20... Bxd4 {[%clk 0:01:46.5]}
21. c3 {[%clk 0:02:01.1]} 21... Bf6 {[%clk 0:01:45.4]} 22. Qg2 {[%clk
0:02:00.4]} 22... Rd8 {[%clk 0:01:42.8]} 23. g4 {[%clk 0:01:59.5]} 23... Qd6
{[%clk 0:01:35.4]} 24. f5 {[%clk 0:01:40.1]} 24... Bxh4 {[%clk 0:01:28.7]} 25.
Rh1 {[%clk 0:01:38.2]} 25... Bg5+ {[%clk 0:01:25.4]} 26. Kc2 {[%clk 0:01:38.6]}
26... h4 {[%clk 0:01:25.1]} 27. fxg6 {[%clk 0:01:36.6]} 27... fxg6 {[%clk
0:01:24.7]} 28. Rf1 {[%clk 0:01:35]} 28... Kg7 {[%clk 0:01:24.3]} 29. Qe2 {[%clk
0:01:18.1]} 29... Rf8 {[%clk 0:01:16.9]} 30. Bg2 {[%clk 0:01:06.2]} 30... Rxf1
{[%clk 0:01:14.5]} 31. Qxf1 {[%clk 0:01:04.5]} 31... Qf6 {[%clk 0:01:12.3]} 32.
Qxf6+ {[%clk 0:01:00.1]} 32... Kxf6 {[%clk 0:01:11.9]} 33. Bxd5 {[%clk
0:01:00.3]} 33... h3 {[%clk 0:01:10.6]} 34. Kd1 {[%clk 0:00:59.7]} 34... Ke5
{[%clk 0:01:09.9]} 35. Bc6 {[%clk 0:00:54.6]} 35... Kf4 {[%clk 0:01:08.6]} 36.
Ke2 {[%clk 0:00:51.5]} 36... Kxg4 {[%clk 0:01:08.3]} 37. Kf2 {[%clk 0:00:51.6]}
37... Bh4+ {[%clk 0:01:07.4]} 38. Kg1 {[%clk 0:00:51.5]} 38... Kg3 {[%clk
0:01:07.1]} 39. d4 {[%clk 0:00:49.8]} 39... cxd4 {[%clk 0:01:04.8]} 40. cxd4
{[%clk 0:00:50.7]} 40... Be7 {[%clk 0:01:02.8]} 41. Be4 {[%clk 0:00:50.1]} 41...
g5 {[%clk 0:01:02]} 42. a4 {[%clk 0:00:47.9]} 42... g4 {[%clk 0:01:01.4]} 43.
Bc6 {[%clk 0:00:44.6]} 43... Kf4 {[%clk 0:00:59.2]} 44. Kh2 {[%clk 0:00:41.2]}
44... Bd6 {[%clk 0:00:57.3]} 45. Bd7 {[%clk 0:00:37.7]} 45... Kf3+ {[%clk
0:00:49.4]} 46. Kg1 {[%clk 0:00:37.1]} 46... Kg3 {[%clk 0:00:40.4]} 47. b3
{[%clk 0:00:35]} 47... h2+ {[%clk 0:00:38.9]} 48. Kh1 {[%clk 0:00:34.2]} 48...
Kf2 {[%clk 0:00:38.2]} 49. Bxg4 {[%clk 0:00:32.8]} 49... Ke3 {[%clk 0:00:36.8]}
50. d5 {[%clk 0:00:31.7]} 50... Kd4 {[%clk 0:00:35.8]} 51. Bd1 {[%clk
0:00:23.7]} 51... Kxd5 {[%clk 0:00:35.2]} 52. Bf3+ {[%clk 0:00:19.8]} 52... Kd4
{[%clk 0:00:34.6]} 53. Bh5 {[%clk 0:00:19.6]} 53... Kc3 {[%clk 0:00:34.1]} 54.
Bf7 {[%clk 0:00:20.2]} 54... a6 {[%clk 0:00:33.1]} 55. Kg2 {[%clk 0:00:21.1]}
55... b5 {[%clk 0:00:31.5]} 56. axb5 {[%clk 0:00:20.8]} 56... axb5 {[%clk
0:00:31.4]} 57. Kh1 {[%clk 0:00:21.7]} 57... b4 {[%clk 0:00:31.1]} 58. Be6
{[%clk 0:00:21.8]} 58... Kd4 {[%clk 0:00:29]} 59. Bf7 {[%clk 0:00:22.7]} 59...
Kc3 {[%clk 0:00:27.2]} 60. Bg8 {[%clk 0:00:23.6]} 60... Kd4 {[%clk 0:00:25.6]}
61. Bf7 {[%clk 0:00:24.5]} 61... Kc3 {[%clk 0:00:25.5]} 1/2-1/2

[Event "*** Titled Tuesday Blitz"]
[Site "Chess.com"]
[Date "2020.10.20"]
[Round "11"]
[White "DinaBelenkaya"]
[Black "WPWPWP-2015"]
[Result "1-0"]
[WhiteElo "2314"]
[BlackElo "2432"]
[TimeControl "180+1"]
[EndTime "12:09:00 PDT"]
[Termination "DinaBelenkaya won on time"]

1. e4 {[%clk 0:03:00.9]} 1... c5 {[%clk 0:02:54.6]} 2. Nc3 {[%clk 0:02:58.1]}
2... d6 {[%clk 0:02:53.3]} 3. Nf3 {[%clk 0:02:55.6]} 3... Nf6 {[%clk 0:02:52.9]}
4. g3 {[%clk 0:02:54.4]} 4... Nc6 {[%clk 0:02:50.8]} 5. Bg2 {[%clk 0:02:54.1]}
5... e6 {[%clk 0:02:50.8]} 6. d3 {[%clk 0:02:51.6]} 6... Be7 {[%clk 0:02:51]} 7.
O-O {[%clk 0:02:40.1]} 7... O-O {[%clk 0:02:51.9]} 8. h4 {[%clk 0:02:38.2]} 8...
Bd7 {[%clk 0:02:49.6]} 9. Nh2 {[%clk 0:02:32.1]} 9... Nd4 {[%clk 0:02:45.9]} 10.
h5 {[%clk 0:02:30.8]} 10... Bc6 {[%clk 0:02:41.1]} 11. h6 {[%clk 0:02:30.3]}
11... g6 {[%clk 0:02:41.1]} 12. Ng4 {[%clk 0:02:30.4]} 12... Nd7 {[%clk
0:02:38.9]} 13. f4 {[%clk 0:02:21.8]} 13... f5 {[%clk 0:02:36.3]} 14. Ne3 {[%clk
0:02:18.4]} 14... b5 {[%clk 0:02:29.7]} 15. a3 {[%clk 0:02:14.5]} 15... Qb6
{[%clk 0:02:26]} 16. Kh2 {[%clk 0:02:06]} 16... Rae8 {[%clk 0:02:23.8]} 17. g4
{[%clk 0:02:04]} 17... e5 {[%clk 0:02:18.3]} 18. gxf5 {[%clk 0:02:02.3]} 18...
exf4 {[%clk 0:02:16.8]} 19. Ned5 {[%clk 0:01:58.4]} 19... Qd8 {[%clk 0:02:12.1]}
20. Bxf4 {[%clk 0:01:58.2]} 20... gxf5 {[%clk 0:02:08.3]} 21. Rg1 {[%clk
0:01:55.5]} 21... Kh8 {[%clk 0:02:06.6]} 22. Bh3 {[%clk 0:01:34.2]} 22... Ne5
{[%clk 0:01:56.4]} 23. Bxe5+ {[%clk 0:01:11.1]} 23... dxe5 {[%clk 0:01:55]} 24.
Qh5 {[%clk 0:01:09.4]} 24... b4 {[%clk 0:01:34.8]} 25. axb4 {[%clk 0:01:09.1]}
25... cxb4 {[%clk 0:01:34.6]} 26. Nxe7 {[%clk 0:01:02.7]} 26... Qxe7 {[%clk
0:01:30.4]} 27. Nd5 {[%clk 0:01:02]} 27... Bxd5 {[%clk 0:01:22]} 28. exd5 {[%clk
0:01:02.9]} 28... e4 {[%clk 0:01:17.6]} 29. Rg7 {[%clk 0:00:47.8]} 29... Nf3+
{[%clk 0:01:07.2]} 30. Kh1 {[%clk 0:00:46.2]} 30... Qe5 {[%clk 0:01:01.8]} 31.
Bg2 {[%clk 0:00:39.9]} 31... Qxb2 {[%clk 0:00:27.8]} 32. Rf1 {[%clk 0:00:39.6]}
32... Qf6 {[%clk 0:00:19.1]} 33. Bxf3 {[%clk 0:00:32.9]} 33... exf3 {[%clk
0:00:20]} 34. Rxf3 {[%clk 0:00:26.9]} 34... Re1+ {[%clk 0:00:19.3]} 35. Kg2
{[%clk 0:00:26.7]} 35... Qa1 {[%clk 0:00:17.5]} 36. Qh2 {[%clk 0:00:15.4]} 36...
Re2+ {[%clk 0:00:07.1]} 37. Rf2 {[%clk 0:00:15.4]} 37... Rxf2+ {[%clk
0:00:06.6]} 38. Kxf2 {[%clk 0:00:16.3]} 38... Qd4+ {[%clk 0:00:06.2]} 39. Kf1
{[%clk 0:00:13.5]} 39... Qxd5 {[%clk 0:00:03.6]} 40. Qg3 {[%clk 0:00:11.1]}
40... Qe6 {[%clk 0:00:02]} 41. Rxh7+ {[%clk 0:00:10]} 1-0

[Event "*** Titled Tuesday Blitz"]
[Site "Chess.com"]
[Date "2020.10.20"]
[Round "11"]
[White "Oglob71"]
[Black "davidkalashian"]
[Result "1-0"]
[WhiteElo "2474"]
[BlackElo "2599"]
[TimeControl "180+1"]
[EndTime "12:09:04 PDT"]
[Termination "Oglob71 won on time"]

1. d4 {[%clk 0:02:58.7]} 1... Nf6 {[%clk 0:02:58.9]} 2. Nf3 {[%clk 0:02:57.2]}
2... e6 {[%clk 0:02:57.5]} 3. c4 {[%clk 0:02:54.7]} 3... b6 {[%clk 0:02:57.4]}
4. Bf4 {[%clk 0:02:53]} 4... Bb7 {[%clk 0:02:44.5]} 5. e3 {[%clk 0:02:52]} 5...
Bb4+ {[%clk 0:02:37.8]} 6. Nfd2 {[%clk 0:02:51.1]} 6... c5 {[%clk 0:02:36.2]} 7.
dxc5 {[%clk 0:02:46]} 7... Bxc5 {[%clk 0:02:32.7]} 8. Nc3 {[%clk 0:02:45.1]}
8... O-O {[%clk 0:02:28.7]} 9. a3 {[%clk 0:02:43.9]} 9... d5 {[%clk 0:02:26.4]}
10. Nb3 {[%clk 0:02:39.6]} 10... Be7 {[%clk 0:02:22.5]} 11. cxd5 {[%clk
0:02:32.8]} 11... Nxd5 {[%clk 0:02:23.4]} 12. Nxd5 {[%clk 0:02:32.1]} 12... Bxd5
{[%clk 0:02:22.7]} 13. Be2 {[%clk 0:02:25.5]} 13... Bxg2 {[%clk 0:02:18.7]} 14.
Rg1 {[%clk 0:02:25.3]} 14... Qxd1+ {[%clk 0:02:13.9]} 15. Rxd1 {[%clk
0:02:24.9]} 15... Bd5 {[%clk 0:02:14.4]} 16. Nd2 {[%clk 0:02:23.1]} 16... Nd7
{[%clk 0:02:09.8]} 17. e4 {[%clk 0:02:22.6]} 17... Bb7 {[%clk 0:02:07.2]} 18. f3
{[%clk 0:02:22.5]} 18... Rac8 {[%clk 0:02:04.1]} 19. Nc4 {[%clk 0:02:22.3]}
19... Rfd8 {[%clk 0:01:54]} 20. Nd6 {[%clk 0:02:22.3]} 20... Bxd6 {[%clk
0:01:53]} 21. Rxd6 {[%clk 0:02:21.9]} 21... Nc5 {[%clk 0:01:47.4]} 22. Rxd8+
{[%clk 0:02:17.4]} 22... Rxd8 {[%clk 0:01:48.3]} 23. Bh6 {[%clk 0:02:17]} 23...
g6 {[%clk 0:01:46]} 24. Be3 {[%clk 0:02:16.6]} 24... Na4 {[%clk 0:01:35.5]} 25.
Kf2 {[%clk 0:02:08]} 25... Nxb2 {[%clk 0:01:32.1]} 26. Rc1 {[%clk 0:02:08.2]}
26... Rc8 {[%clk 0:01:18.6]} 27. Rxc8+ {[%clk 0:01:57.4]} 27... Bxc8 {[%clk
0:01:19.5]} 28. Bd4 {[%clk 0:01:57.9]} 28... Na4 {[%clk 0:01:16.8]} 29. Ke3
{[%clk 0:01:58.3]} 29... Bd7 {[%clk 0:01:14.8]} 30. Kf4 {[%clk 0:01:58.4]} 30...
Kf8 {[%clk 0:01:09.4]} 31. Bf6 {[%clk 0:01:58.1]} 31... Ke8 {[%clk 0:01:00.6]}
32. Ke5 {[%clk 0:01:58.3]} 32... Nc3 {[%clk 0:00:55.6]} 33. Bd3 {[%clk 0:01:54]}
33... Bb5 {[%clk 0:00:54.5]} 34. Bc2 {[%clk 0:01:53.9]} 34... Kd7 {[%clk
0:00:49.2]} 35. Kd4 {[%clk 0:01:47.6]} 35... Ne2+ {[%clk 0:00:43.3]} 36. Ke3
{[%clk 0:01:47.4]} 36... Kd6 {[%clk 0:00:40.1]} 37. f4 {[%clk 0:01:44]} 37... h5
{[%clk 0:00:31.4]} 38. Bb2 {[%clk 0:01:41]} 38... Ng1 {[%clk 0:00:19.9]} 39.
Be5+ {[%clk 0:01:38.3]} 39... Kd7 {[%clk 0:00:15.6]} 40. a4 {[%clk 0:01:36.2]}
40... Ba6 {[%clk 0:00:14.2]} 41. h4 {[%clk 0:01:31.3]} 41... Kc6 {[%clk
0:00:12.6]} 42. Bd4 {[%clk 0:01:26.7]} 42... Kd7 {[%clk 0:00:10.9]} 43. a5
{[%clk 0:01:23.6]} 43... bxa5 {[%clk 0:00:09.8]} 44. Ba4+ {[%clk 0:01:24.1]}
44... Kc7 {[%clk 0:00:08.6]} 45. Bxa7 {[%clk 0:01:24.6]} 45... f5 {[%clk
0:00:06.5]} 46. e5 {[%clk 0:01:23.3]} 46... Kd8 {[%clk 0:00:05.3]} 47. Bb6+
{[%clk 0:01:22.7]} 47... Ke7 {[%clk 0:00:05.7]} 48. Bxa5 {[%clk 0:01:23.2]}
48... Ne2 {[%clk 0:00:05]} 49. Be1 {[%clk 0:01:21]} 49... Nc1 {[%clk 0:00:03.4]}
50. Bc2 {[%clk 0:01:17.4]} 50... Kf7 {[%clk 0:00:03.8]} 51. Bd2 {[%clk 0:01:17]}
51... Ne2 {[%clk 0:00:02.6]} 52. Bd1 {[%clk 0:01:17.1]} 52... Ng1 {[%clk
0:00:01.9]} 53. Kf2 {[%clk 0:01:11.4]} 53... Nh3+ {[%clk 0:00:02.1]} 54. Kg3
{[%clk 0:01:11.4]} 54... Nxf4 {[%clk 0:00:01.8]} 55. Bxf4 {[%clk 0:01:10.6]}
55... Bd3 {[%clk 0:00:02.7]} 56. Ba4 {[%clk 0:01:09.8]} 56... Be4 {[%clk
0:00:03.6]} 57. Bg5 {[%clk 0:01:09.3]} 57... Bd5 {[%clk 0:00:04.5]} 58. Kf4
{[%clk 0:01:09.8]} 58... Bc4 {[%clk 0:00:04.9]} 59. Ke3 {[%clk 0:01:09.9]} 59...
Bd5 {[%clk 0:00:05.8]} 60. Kd4 {[%clk 0:01:09.3]} 60... Ba2 {[%clk 0:00:05.8]}
61. Kc5 {[%clk 0:01:09.7]} 61... Bd5 {[%clk 0:00:06.6]} 62. Kd6 {[%clk
0:01:10.2]} 62... Ba2 {[%clk 0:00:06.3]} 63. Kc7 {[%clk 0:01:10.2]} 63... Bd5
{[%clk 0:00:06.5]} 64. Kd8 {[%clk 0:01:10.6]} 64... Ba2 {[%clk 0:00:04.5]} 65.
Be8+ {[%clk 0:01:11]} 65... Kf8 {[%clk 0:00:03.8]} 66. Bh6+ {[%clk 0:01:08.2]}
66... Kg8 {[%clk 0:00:02.7]} 67. Ke7 {[%clk 0:01:08.6]} 1-0

[Event "*** Titled Tuesday Blitz"]
[Site "Chess.com"]
[Date "2020.10.20"]
[Round "11"]
[White "GM_Levan_Pantsulaia"]
[Black "Beca95"]
[Result "0-1"]
[WhiteElo "2860"]
[BlackElo "2918"]
[TimeControl "180+1"]
[EndTime "12:09:07 PDT"]
[Termination "Beca95 won on time"]

1. Nf3 {[%clk 0:03:00.9]} 1... g6 {[%clk 0:03:00.1]} 2. g3 {[%clk 0:03:00]} 2...
Bg7 {[%clk 0:03:00.7]} 3. Bg2 {[%clk 0:03:00.2]} 3... d6 {[%clk 0:03:00.4]} 4.
O-O {[%clk 0:02:59.3]} 4... e5 {[%clk 0:03:00.6]} 5. c4 {[%clk 0:02:58.8]} 5...
Nd7 {[%clk 0:03:00.7]} 6. Nc3 {[%clk 0:02:57.8]} 6... Nh6 {[%clk 0:03:00.7]} 7.
d4 {[%clk 0:02:52.3]} 7... O-O {[%clk 0:02:59.2]} 8. Bg5 {[%clk 0:02:39.1]} 8...
f6 {[%clk 0:02:59.1]} 9. Bd2 {[%clk 0:02:38.7]} 9... Nf7 {[%clk 0:02:58.9]} 10.
b3 {[%clk 0:02:26.9]} 10... f5 {[%clk 0:02:58.7]} 11. dxe5 {[%clk 0:02:27.1]}
11... dxe5 {[%clk 0:02:59.1]} 12. e4 {[%clk 0:02:23.7]} 12... c6 {[%clk
0:02:59.3]} 13. Qc2 {[%clk 0:02:20.6]} 13... Qf6 {[%clk 0:02:58]} 14. Rad1
{[%clk 0:02:13.6]} 14... f4 {[%clk 0:02:57.7]} 15. Ne2 {[%clk 0:02:07.5]} 15...
g5 {[%clk 0:02:57.3]} 16. h3 {[%clk 0:01:54.2]} 16... Qg6 {[%clk 0:02:47]} 17.
Bc3 {[%clk 0:01:50.4]} 17... Re8 {[%clk 0:02:43.7]} 18. gxf4 {[%clk 0:01:42.8]}
18... exf4 {[%clk 0:02:38]} 19. Bxg7 {[%clk 0:01:41.8]} 19... Qxg7 {[%clk
0:02:38.9]} 20. Nfd4 {[%clk 0:01:37.5]} 20... Nde5 {[%clk 0:02:37.6]} 21. f3
{[%clk 0:01:31.3]} 21... Qf6 {[%clk 0:02:35]} 22. c5 {[%clk 0:01:28.2]} 22...
Ng6 {[%clk 0:02:32.3]} 23. Kh1 {[%clk 0:01:23.6]} 23... Nfe5 {[%clk 0:02:31.2]}
24. Nc1 {[%clk 0:01:18.2]} 24... a5 {[%clk 0:02:24.6]} 25. Nd3 {[%clk
0:01:16.1]} 25... Kh8 {[%clk 0:02:17.1]} 26. Nxe5 {[%clk 0:01:12.3]} 26... Nxe5
{[%clk 0:02:18]} 27. Rf2 {[%clk 0:01:11.6]} 27... Qh6 {[%clk 0:02:04.8]} 28. Nf5
{[%clk 0:01:05.7]} 28... Bxf5 {[%clk 0:02:02.1]} 29. exf5 {[%clk 0:01:06.6]}
29... Rad8 {[%clk 0:01:55.2]} 30. Rfd2 {[%clk 0:01:04.6]} 30... Rxd2 {[%clk
0:01:55.1]} 31. Qxd2 {[%clk 0:01:04.3]} 31... Qf6 {[%clk 0:01:53.3]} 32. Qxa5
{[%clk 0:00:58.6]} 32... Qxf5 {[%clk 0:01:50.7]} 33. Rd8 {[%clk 0:00:57.7]}
33... Qf8 {[%clk 0:01:43.4]} 34. Rd2 {[%clk 0:00:52.9]} 34... Kg7 {[%clk
0:01:39.4]} 35. Qb4 {[%clk 0:00:46.9]} 35... Re7 {[%clk 0:01:38.9]} 36. Qd4
{[%clk 0:00:42]} 36... Kh6 {[%clk 0:01:37.4]} 37. b4 {[%clk 0:00:33.4]} 37...
Ng6 {[%clk 0:01:35.2]} 38. Kh2 {[%clk 0:00:29.2]} 38... Re3 {[%clk 0:01:29.3]}
39. a4 {[%clk 0:00:25]} 39... Qe7 {[%clk 0:01:25.9]} 40. Qd7 {[%clk 0:00:20.8]}
40... Qf6 {[%clk 0:01:20.5]} 41. Rd6 {[%clk 0:00:16.4]} 41... Qb2 {[%clk
0:01:17.4]} 42. h4 {[%clk 0:00:16.2]} 42... gxh4 {[%clk 0:00:58.6]} 43. Qg4
{[%clk 0:00:12.5]} 43... Qe5 {[%clk 0:00:51.2]} 44. Qxh4+ {[%clk 0:00:10.1]}
44... Qh5 {[%clk 0:00:30.3]} 45. Qxh5+ {[%clk 0:00:10.2]} 45... Kxh5 {[%clk
0:00:31.2]} 46. Rd7 {[%clk 0:00:10.5]} 46... Re2 {[%clk 0:00:29.4]} 47. Rxh7+
{[%clk 0:00:05.9]} 47... Kg5 {[%clk 0:00:29.6]} 48. Rxb7 {[%clk 0:00:04.7]}
48... Nh4 {[%clk 0:00:28.1]} 49. Rg7+ {[%clk 0:00:05]} 49... Kf5 {[%clk
0:00:28.4]} 50. Kh3 {[%clk 0:00:03.3]} 50... Ng6 {[%clk 0:00:27]} 51. Rf7+
{[%clk 0:00:02.5]} 51... Kg5 {[%clk 0:00:26.6]} 52. Rc7 {[%clk 0:00:02.1]} 52...
Re8 {[%clk 0:00:24.2]} 0-1